fUSD/lending_fUSD_20240223
["ID","MTS","AMOUNT","RATE_DAILY","PERIOD"]
[315009682,1708728643731,-500.0,0.00031717,2]
[315009683,1708728643742,-500.0,0.00031717,2]
[315009684,1708728643753,-500.0,0.00031717,2]
[315009685,1708728643764,-518.95622321,0.00031717,2]
[315009686,1708728643775,-522.67510784,0.00031717,2]
[315009687,1708728643786,-500.0,0.00031717,2]
[315009688,1708728643797,-500.0,0.00031717,2]
[315009689,1708728643809,-926.75,0.0003178,2]
[315009690,1708728643820,-2320.78167424,0.000318,2]
[315009691,1708728643830,-500.0,0.00031817,2]
[315009692,1708728643840,-500.0,0.00031854,2]
[315009693,1708728643852,-500.0,0.00031854,2]
[315009694,1708728643862,-500.0,0.00031854,2]
[315009695,1708728643873,-159.71,0.00031854,2]
[315009696,1708728643883,-317.05152091,0.00031854,2]
[315009697,1708728643894,-500.0,0.00031854,2]
[315009698,1708728643932,-500.0,0.00031854,2]
[315009699,1708728643942,-500.0,0.00031954,2]
[315009700,1708728643952,-674.28535202,0.00031958,5]
[315009701,1708728643963,-500.0,0.00031991,2]
[315009702,1708728643973,-500.0,0.00031991,2]
[315009703,1708728643983,-500.0,0.00031991,2]
[315009704,1708728643994,-329.4,0.00032091,2]
[315009705,1708728644004,-500.0,0.00032128,2]
[315009706,1708728644014,-500.0,0.00032128,2]
[315009707,1708728644024,-500.0,0.00032128,2]
[315009708,1708728644035,-421.92614462,0.00032144,5]
[315009709,1708728644045,-1391.4229712,0.00032144,7]
[315009710,1708728644055,-6349.4684197,0.00032144,7]
[315009711,1708728644066,-60687.11090197,0.00032144,7]
[315009712,1708728644076,-560.38658732,0.00032265,2]
[315009713,1708728644087,-572.72,0.00032265,2]
[315009714,1708728644097,-201.61,0.00032391,2]
[315009715,1708728644108,-1742.61336382,0.00032486,2]
[315009716,1708728644121,-1000.0,0.00032846,2]
[315009717,1708728644132,-150.22,0.00032877,2]
[315009718,1708728644143,-162.58,0.00032877,2]
[315009719,1708728644154,-250.0,0.00032877,2]
[315009720,1708728644165,-150.0,0.00032877,2]
[315009721,1708728644177,-260736.929335,0.00032881,7]
[315009722,1708728644187,-7234.0,0.000329,2]
[315009723,1708728644197,-150.61156201,0.00032905,7]
[315009724,1708728644208,-154.20563153,0.00032977,7]
[315009725,1708728644218,-604.08,0.00033117,2]
[315009726,1708728644229,-214.48,0.00033169,2]
[315009727,1708728644239,-171.23,0.00033205,2]
[315009728,1708728644250,-514.28201034,0.00033279,2]
[315009729,1708728644261,-10095.17690108,0.000333,4]
[315009730,1708728644271,-201.53,0.000335,2]
[315009731,1708728644282,-201.53,0.000335,2]
[315009732,1708728644291,-201.53,0.000335,2]
[315009733,1708728644302,-201.53,0.000335,2]
[315009734,1708728644313,-201.53,0.000335,2]
[315009735,1708728644325,-201.53,0.000335,2]
[315009736,1708728644336,-201.53,0.000335,2]
[315009737,1708728644347,-201.53,0.000335,2]
[315009738,1708728644358,-201.53,0.000335,2]
[315009739,1708728644369,-201.53,0.000335,2]
[315009740,1708728644379,-201.53,0.000335,2]
[315009741,1708728644390,-201.53,0.000335,2]
[315009742,1708728644400,-201.53,0.000335,2]
[315009743,1708728644411,-201.53,0.000335,2]
[315009744,1708728644421,-201.53,0.000335,2]
[315009745,1708728644431,-201.53,0.000335,2]
[315009746,1708728644442,-201.53,0.000335,2]
[315009748,1708728644744,-201.53,0.000335,2]
[315009749,1708728644754,-201.53,0.000335,2]
[315009750,1708728644763,-201.53,0.000335,2]
[315009751,1708728644773,-150.0,0.00033742,2]
[315009752,1708728644782,-1000.0,0.00033882,2]
[315009753,1708728644791,-153.59267436,0.000339,2]
[315009754,1708728644800,-151.0,0.00033916,120]
[315009755,1708728644812,-7234.0,0.000342,2]
[315009756,1708728644822,-154.20563153,0.00034207,7]
[315009757,1708728644831,-172.67273251,0.00034259,2]
[315009758,1708728644840,-674.28535202,0.00034297,6]
[315009759,1708728644850,-935.335399,0.0003452,2]
[315009760,1708728644859,-979.16,0.00034521,2]
[315009761,1708728644869,-150.0,0.00034607,2]
[315009762,1708728644878,-151.0,0.00034609,30]
[315009763,1708728644889,-1742.61336382,0.00034617,2]
[315009764,1708728644898,-12706.0,0.000347,3]
[315009765,1708728644908,-154.20563153,0.00034717,7]
[315009766,1708728644916,-1403.003098,0.00034794,2]
[315009767,1708728644926,-214.48,0.00034813,2]
[315009768,1708728644935,-153.59267435,0.00034899,2]
[315009769,1708728644945,-2917.10211236,0.000349,2]
[315009770,1708728644954,-2917.10211222,0.000349,2]
[315009771,1708728644963,-2917.10211222,0.000349,2]
[315009772,1708728644972,-1870.670798,0.00034931,2]
[315009773,1708728644982,-586.90975074,0.00035,4]
[315009774,1708728644991,-229.20433756,0.00035,7]
[315009775,1708728645000,-159.39088986,0.00035036,7]
[315009776,1708728645009,-2338.338498,0.00035068,2]
[315009777,1708728645019,-201.53,0.000351,2]
[315009778,1708728645028,-201.53,0.000351,2]
[315009779,1708728645038,-201.53,0.000351,2]
[315009780,1708728645047,-201.53,0.000351,2]
[315009781,1708728645057,-201.53,0.000351,2]
[315009782,1708728645066,-201.53,0.000351,2]
[315009783,1708728645076,-201.53,0.000351,2]
[315009784,1708728645085,-201.53,0.000351,2]
[315009785,1708728645094,-201.53,0.000351,2]
[315009786,1708728645104,-201.53,0.000351,2]
[315009787,1708728645113,-201.53,0.000351,2]
[315009788,1708728645122,-201.53,0.000351,2]
[315009789,1708728645132,-201.53,0.000351,2]
[315009790,1708728645141,-201.53,0.000351,2]
[315009791,1708728645151,-201.53,0.000351,2]
[315009792,1708728645161,-201.53,0.000351,2]
[315009793,1708728645170,-201.53,0.000351,2]
[315009794,1708728645179,-201.53,0.000351,2]
[315009795,1708728645189,-201.53,0.000351,2]
[315009796,1708728645199,-201.53,0.000351,2]
[315009797,1708728645208,-155.59752133,0.00035104,7]
[315009798,1708728645218,-514.28201034,0.00035278,2]
[315009799,1708728645227,-151.0,0.00035315,7]
[315009800,1708728645236,-3273.673897,0.00035342,2]
[315009801,1708728645245,-159.39088986,0.00035361,7]
[315009802,1708728645255,-604.08,0.00035381,2]
[315009803,1708728645264,-150.0,0.00035472,2]
[315009804,1708728645274,-2234.41104136,0.00035529,8]
[315009805,1708728645283,-3741.341596,0.00035589,2]
[315009806,1708728645292,-58000.0,0.00035616,3]
[315009807,1708728645301,-201.61,0.00035631,2]
[315009808,1708728645310,-150.61156201,0.00035679,7]
[315009809,1708728645319,-154.98329938,0.0003574,7]
[315009810,1708728645328,-979.16,0.00035798,2]
[315009811,1708728645337,-5800.0,0.0003589,2]
[315009812,1708728645347,-650.0,0.0003597,2]
[315009813,1708728645356,-171.0,0.00036,2]
[315009814,1708728645365,-317.88,0.00036,2]
[315009815,1708728645374,-151.0,0.00036036,4]
[315009816,1708728645383,-507.21,0.0003615,2]
[315009817,1708728645393,-150.0,0.00036161,7]
[315009818,1708728645402,-2000.0,0.000362,2]
[315009819,1708728645411,-159.39088988,0.00036233,7]
[315009820,1708728645420,-2917.10211222,0.00036318,2]
[315009821,1708728645429,-150.0,0.00036337,2]
[315009822,1708728645439,-2234.41104132,0.00036381,9]
[315009823,1708728645448,-206.48,0.00036438,2]
[315009824,1708728645458,-214.48,0.00036457,2]
[315009826,1708728645467,-1000.0,0.00036496,2]
[315009828,1708728645476,-674.28535202,0.00036635,8]
[315009830,1708728645486,-201.53,0.000367,3]
[315009832,1708728645496,-201.53,0.000367,3]
[315009834,1708728645506,-201.53,0.000367,3]
[315009836,1708728645515,-201.53,0.000367,3]
[315009837,1708728645525,-201.53,0.000367,3]
[315009838,1708728645534,-201.53,0.000367,3]
[315009839,1708728645544,-201.53,0.000367,3]
[315009840,1708728645553,-201.53,0.000367,3]
[315009841,1708728645563,-201.53,0.000367,3]
[315009842,1708728645573,-201.53,0.000367,3]
[315009843,1708728645583,-201.53,0.000367,3]
[315009844,1708728645593,-201.53,0.000367,3]
[315009845,1708728645604,-201.53,0.000367,3]
[315009846,1708728645614,-201.53,0.000367,3]
[315009847,1708728645623,-201.53,0.000367,3]
[315009848,1708728645633,-201.53,0.000367,3]
[315009849,1708728645642,-201.53,0.000367,3]
[315009850,1708728645652,-201.53,0.000367,3]
[315009851,1708728645661,-201.53,0.000367,3]
[315009852,1708728645670,-201.53,0.000367,3]
[315009853,1708728645679,-1742.61336382,0.00036747,2]
[315009854,1708728645688,-151.0,0.00036771,2]
[315009855,1708728645697,-154.20563153,0.00036804,7]
[315009856,1708728645706,-172.67273251,0.00036817,2]
[315009857,1708728645715,-254.62313764,0.000369,2]
[315009858,1708728645724,-666.0,0.00036986,2]
[315009859,1708728645733,-500.0,0.0003699,10]
[315009860,1708728645743,-310.0,0.00037,2]
[315009861,1708728645752,-500.0,0.00037,2]
[315009862,1708728645764,-154.20563153,0.00037047,7]
[315009863,1708728645774,-150.61156201,0.00037066,7]
[315009864,1708728645784,-979.16,0.00037075,2]
[315009865,1708728645793,-150.0,0.00037203,2]
[315009866,1708728645802,-227.91,0.00037223,10]
[315009867,1708728645815,-2234.41104132,0.00037233,10]
[315009868,1708728645824,-514.28201034,0.00037277,2]
[315009869,1708728645834,-157.51738777,0.00037327,7]
[315009870,1708728645844,-2858.83233387,0.000376,2]
[315009871,1708728645853,-181.3132015,0.000376,2]
[315009872,1708728645864,-604.08,0.00037645,2]
[315009873,1708728645874,-211.47374417,0.00037649,2]
[315009874,1708728645884,-273.49,0.00037661,10]
[315009875,1708728645893,-180.0,0.00037671,2]
[315009876,1708728645902,-1231.25904791,0.00037684,2]
[315009877,1708728645911,-926.75,0.00037699,4]
[315009878,1708728645921,-198993.46596613,0.000377,4]
[315009879,1708728645931,-157.51738777,0.00037749,7]
[315009880,1708728645939,-2917.10211222,0.00037897,2]
[315009881,1708728645948,-926.75,0.00037899,4]
[315009882,1708728645957,-926.75,0.00037899,4]
[315009883,1708728645968,-926.75,0.00037899,4]
[315009884,1708728645977,-926.75,0.00037899,4]
[315009885,1708728645986,-926.75,0.00037899,4]
[315009886,1708728645995,-926.75,0.00037899,4]
[315009887,1708728646004,-926.75,0.00037899,4]
[315009888,1708728646014,-926.75,0.00037899,4]
[315009889,1708728646023,-19684.19787024,0.000379,2]
[315009890,1708728646032,-1084968.12767536,0.000379,4]
[315009891,1708728646041,-1953.77,0.000379,7]
[315009892,1708728646050,-1620.03,0.000379,7]
[315009893,1708728646059,-678263.260846,0.000379,2]
[315009894,1708728646068,-321.0,0.00038,2]
[315009895,1708728646078,-150.0,0.00038068,2]
[315009896,1708728646087,-2234.41104132,0.00038085,11]
[315009897,1708728646097,-500.0,0.00038086,10]
[315009898,1708728646106,-200.0,0.000381,11]
[315009899,1708728646120,-154.20563153,0.00038103,7]
[315009900,1708728646130,-201.53,0.000382,3]
[315009901,1708728646139,-201.53,0.000382,3]
[315009902,1708728646148,-201.53,0.000382,3]
[315009903,1708728646157,-201.53,0.000382,3]
[315009904,1708728646166,-201.53,0.000382,3]
[315009905,1708728646175,-201.53,0.000382,3]
[315009906,1708728646185,-201.53,0.000382,3]
[315009907,1708728646194,-201.53,0.000382,3]
[315009908,1708728646203,-201.53,0.000382,3]
[315009909,1708728646212,-201.53,0.000382,3]
[315009910,1708728646221,-201.53,0.000382,3]
[315009911,1708728646231,-201.53,0.000382,3]
[315009912,1708728646240,-201.53,0.000382,3]
[315009913,1708728646249,-201.53,0.000382,3]
[315009914,1708728646258,-201.53,0.000382,3]
[315009915,1708728646267,-201.53,0.000382,3]
[315009916,1708728646276,-201.53,0.000382,3]
[315009917,1708728646286,-201.53,0.000382,3]
[315009918,1708728646295,-201.53,0.000382,3]
[315009919,1708728646306,-201.53,0.000382,3]
[315009920,1708728646315,-160.49481863,0.00038308,7]
[315009921,1708728646324,-160.49481864,0.0003833,7]
[315009922,1708728646333,-979.16,0.00038352,2]
[315009923,1708728646342,-3487.34,0.00038356,15]
[315009924,1708728646352,-1620.03,0.000385,7]
[315009925,1708728646363,-507.21,0.0003856,2]
[315009926,1708728646372,-157.51738778,0.00038624,7]
[315009927,1708728646381,-172.568888,0.0003865,7]
[315009928,1708728646390,-163.456993,0.0003865,7]
[315009929,1708728646399,-152.669311,0.0003865,7]
[315009930,1708728646408,-152.669311,0.0003865,7]
[315009931,1708728646417,-1953.77,0.000387,7]
[315009932,1708728646426,-6892.55022949,0.00038764,2]
[315009933,1708728646435,-1742.61336382,0.00038878,2]
[315009934,1708728646444,-2000.0,0.000389,2]
[315009935,1708728646453,-150.0,0.00038933,2]
[315009936,1708728646462,-2234.41104132,0.00038937,12]
[315009937,1708728646472,-400.0,0.0003897,2]
[315009938,1708728646481,-674.28535202,0.00038974,9]
[315009939,1708728646490,-154.20563154,0.00039029,7]
[315009940,1708728646500,-163.09927512,0.00039044,3]
[315009941,1708728646509,-150.61156201,0.00039056,7]
[315009942,1708728646518,-926.75,0.00039071,4]
[315009943,1708728646528,-200.0,0.000391,13]
[315009944,1708728646537,-1620.03,0.000391,7]
[315009945,1708728646547,-1705.744602,0.00039115,30]
[315009946,1708728646556,-153.54957341,0.00039115,30]
[315009947,1708728646565,-929.76076593,0.00039156,10]
[315009948,1708728646575,-1554.75213604,0.00039156,10]
[315009949,1708728646584,-278.28459424,0.00039156,30]
[315009950,1708728646594,-6068.7110902,0.00039156,30]
[315009951,1708728646603,-400.0,0.0003917,2]
[315009952,1708728646613,-400.0,0.0003917,2]
[315009953,1708728646622,-281.743159,0.00039178,14]
[315009954,1708728646631,-500.0,0.00039182,10]
[315009955,1708728646641,-365.7436498,0.00039198,2]
[315009956,1708728646650,-152.0,0.000392,7]
[315009957,1708728646659,-1000.0,0.0003926,2]
[315009958,1708728646668,-514.28201034,0.00039276,2]
[315009959,1708728646677,-926.75,0.00039299,4]
[315009960,1708728646686,-926.75,0.00039299,4]
[315009961,1708728646696,-463209.94978417,0.000393,2]
[315009962,1708728646706,-172.67273251,0.00039376,2]
[315009963,1708728646715,-2917.10211222,0.00039476,2]
[315009964,1708728646724,-23541.08730707,0.000395,2]
[315009965,1708728646734,-1953.77,0.000395,7]
[315009966,1708728646743,-15185.12062188,0.00039581,2]
[315009967,1708728646752,-5349.30919588,0.00039611,2]
[315009968,1708728646761,-56886.06074632,0.00039612,30]
[315009969,1708728646770,-1420.14392907,0.00039613,30]
[315009970,1708728646779,-150.0,0.00039613,2]
[315009971,1708728646787,-150.0,0.00039613,2]
[315009972,1708728646796,-184.9172368,0.00039613,2]
[315009973,1708728646806,-158070.90512905,0.00039614,30]
[315009974,1708728646818,-9922.46198769,0.00039617,30]
[315009975,1708728646829,-979.16,0.0003963,2]
[315009976,1708728646838,-557.16747468,0.00039635,30]
[315009977,1708728646848,-926.75,0.0003964,4]
[315009978,1708728646858,-150.0,0.00039644,7]
[315009979,1708728646868,-150.0,0.00039644,7]
[315009980,1708728646877,-150.0,0.00039644,7]
[315009981,1708728646887,-150.0,0.00039644,7]
[315009982,1708728646896,-150.0,0.00039644,7]
[315009983,1708728646905,-150.0,0.00039644,7]
[315009984,1708728646914,-213.36830761,0.00039644,7]
[315009985,1708728646923,-150.0,0.00039644,7]
[315009986,1708728646932,-150.0,0.00039644,7]
[315009987,1708728646941,-926.75,0.00039645,4]
[315009988,1708728646950,-1462.2562395,0.00039654,30]
[315009989,1708728646959,-9922.46198769,0.00039655,30]
[315009990,1708728646967,-557.16747468,0.00039655,30]
[315009991,1708728646977,-56886.06074632,0.00039656,30]
[315009992,1708728646986,-158070.90512905,0.00039657,30]
[315009993,1708728646995,-926.75,0.00039657,4]
[315009994,1708728647004,-150.0,0.00039664,7]
[315009995,1708728647013,-1420.14392907,0.00039664,30]
[315009996,1708728647022,-9922.46198769,0.00039664,30]
[315009997,1708728647031,-842.64557465,0.0003967,30]
[315009998,1708728647040,-9922.46198769,0.00039671,30]
[315009999,1708728647049,-9922.46198769,0.00039673,30]
[315010000,1708728647058,-150.0,0.00039684,7]
[315010001,1708728647067,-842.64557465,0.00039692,30]
[315010002,1708728647075,-557.16747468,0.00039693,30]
[315010003,1708728647084,-1420.14392907,0.00039693,30]
[315010004,1708728647093,-3416.47,0.000397,7]
[315010005,1708728647102,-1620.03,0.000397,7]
[315010006,1708728647113,-1462.2562395,0.00039701,30]
[315010007,1708728647122,-150.0,0.00039702,7]
[315010008,1708728647132,-56886.06074632,0.00039703,30]
[315010009,1708728647140,-150.0,0.00039704,7]
[315010010,1708728647149,-557.16747468,0.0003971,30]
[315010011,1708728647158,-926.75,0.00039713,4]
[315010012,1708728647167,-56886.06074632,0.00039714,30]
[315010013,1708728647176,-1462.2562395,0.0003972,30]
[315010014,1708728647185,-150.0,0.00039724,7]
[315010015,1708728647194,-158070.90512905,0.00039728,30]
[315010016,1708728647203,-158070.90512905,0.0003973,30]
[315010017,1708728647212,-842.64557465,0.0003973,30]
[315010018,1708728647221,-1420.14392907,0.0003974,30]
[315010019,1708728647230,-158070.90512905,0.00039741,30]
[315010020,1708728647239,-842.64557465,0.00039741,30]
[315010021,1708728647248,-926.75,0.00039742,4]
[315010022,1708728647257,-926.75,0.00039742,4]
[315010023,1708728647265,-926.75,0.00039742,4]
[315010024,1708728647274,-926.75,0.00039742,4]
[315010025,1708728647283,-926.87565741,0.00039742,4]
[315010026,1708728647292,-150.0,0.00039744,7]
[315010027,1708728647302,-1462.2562395,0.00039745,30]
[315010028,1708728647311,-150.0,0.00039748,7]
[315010029,1708728647320,-279.40690622,0.00039751,2]
[315010030,1708728647328,-209.04791568,0.00039751,2]
[315010031,1708728647338,-50332.86042916,0.00039752,30]
[315010032,1708728647396,-1503.13533331,0.00039752,30]
[315010033,1708728647408,-491.85140603,0.00039752,30]
[315010034,1708728647476,-500.0,0.0003158,2]
[315010035,1708728647485,-96.24273158,0.00031644,2]
[315010036,1708728647570,-500.0,0.0003158,2]
[315010037,1708728647579,-530.55182217,0.0003158,2]
[315010038,1708728647588,-127.91726842,0.00031644,2]
[315010039,1708728647598,-525.84441436,0.00031717,2]
[315010040,1708728647607,-189.92,0.00037635,10]
[315010041,1708728647617,-4558.21357782,0.00039752,30]
[315010042,1708728647627,-1420.14392907,0.00039755,30]
[315010043,1708728647636,-557.16747468,0.00039757,30]
[315010044,1708728647645,-153.54957341,0.00039759,30]
[315010045,1708728647654,-1462.2562395,0.0003976,30]
[315010046,1708728647665,-150.0,0.0003976,7]
[315010047,1708728647675,-150.0,0.00039764,7]
[315010048,1708728647684,-842.64557465,0.00039769,30]
[315010049,1708728647693,-150.0,0.00039783,7]
[315010050,1708728647702,-2234.41104132,0.00039789,13]
[315010051,1708728647711,-150.0,0.00039789,7]
[315010052,1708728647721,-150.0,0.00039798,2]
[315010053,1708728647730,-153.75,0.000398,3]
[315010054,1708728647739,-153.75,0.000398,3]
[315010055,1708728647748,-153.75,0.000398,3]
[315010056,1708728647757,-153.75,0.000398,3]
[315010057,1708728647766,-153.75,0.000398,3]
[315010058,1708728647775,-153.75,0.000398,3]
[315010059,1708728647784,-153.75,0.000398,3]
[315010060,1708728647794,-201.53,0.000398,3]
[315010061,1708728647803,-201.53,0.000398,3]
[315010062,1708728647817,-201.53,0.000398,3]
[315010063,1708728647827,-201.53,0.000398,3]
[315010064,1708728647837,-201.53,0.000398,3]
[315010065,1708728647847,-201.53,0.000398,3]
[315010066,1708728647859,-201.53,0.000398,3]
[315010067,1708728647999,-201.53,0.000398,3]
[315010068,1708728648010,-201.53,0.000398,3]
[315010069,1708728648021,-201.53,0.000398,3]
[315010070,1708728648032,-201.53,0.000398,3]
[315010071,1708728648043,-201.53,0.000398,3]
[315010072,1708728648052,-201.53,0.000398,3]
[315010073,1708728648061,-201.53,0.000398,3]
[315010074,1708728648071,-201.53,0.000398,3]
[315010075,1708728648080,-201.53,0.000398,3]
[315010076,1708728648089,-201.53,0.000398,3]
[315010077,1708728648099,-201.53,0.000398,3]
[315010078,1708728648108,-201.53,0.000398,3]
[315010079,1708728648118,-201.53,0.000398,3]
[315010080,1708728648127,-150.0,0.00039803,7]
[315010081,1708728648137,-150.0,0.00039819,7]
[315010082,1708728648148,-150.0,0.00039823,7]
[315010083,1708728648157,-150.0,0.00039826,7]
[315010084,1708728648167,-150.0,0.00039843,7]
[315010085,1708728648176,-150.0,0.00039852,7]
[315010086,1708728648185,-150.0,0.00039863,7]
[315010087,1708728648194,-150.0,0.00039877,7]
[315010088,1708728648203,-150.0,0.00039883,7]
[315010089,1708728648213,-3577.0,0.00039896,2]
[315010090,1708728648222,-153.59267435,0.000399,6]
[315010091,1708728648231,-150.0,0.00039903,7]
[315010092,1708728648241,-604.08,0.00039909,2]
[315010093,1708728648250,-150.0,0.00039923,7]
[315010094,1708728648260,-150.0,0.00039935,7]
[315010095,1708728648269,-150.0,0.00039935,7]
[315010096,1708728648278,-150.0,0.00039943,7]
[315010097,1708728648287,-150.0,0.00039956,7]
[315010098,1708728648296,-150.0,0.00039963,7]
[315010099,1708728648305,-150.0,0.00039967,5]
[315010100,1708728648315,-400.0,0.0003997,2]
[315010101,1708728648324,-300.0,0.0003997,2]
[315010102,1708728648333,-150.0,0.00039983,7]
[315010103,1708728648343,-150.0,0.00039993,7]
[315010104,1708728648353,-5349.30919588,0.00039997,2]
[315010105,1708728648362,-500.0,0.00039999,31]
[315010106,1708728648372,-575.43826435,0.00039999,31]
[315010107,1708728648383,-500.0,0.00039999,31]
[315010108,1708728648393,-439.09101189,0.00039999,31]
[315010109,1708728648402,-500.0,0.00039999,31]
[315010110,1708728648411,-500.0,0.00039999,31]
[315010111,1708728648420,-504.33328172,0.00039999,31]
[315010112,1708728648430,-447.45855289,0.00039999,31]
[315010113,1708728648439,-500.0,0.00039999,31]
[315010114,1708728648448,-178.26089687,0.00039999,31]
[315010115,1708728648458,-500.0,0.00039999,31]
[315010116,1708728648467,-404.65110615,0.00039999,31]
[315010117,1708728648476,-264.28350944,0.00039999,31]
[315010118,1708728648486,-200.0,0.0004,2]
[315010119,1708728648495,-255.0,0.0004,12]
[315010120,1708728648504,-255.0,0.0004,12]
[315010121,1708728648514,-96659.18604209,0.0004,4]
[315010122,1708728648640,-1854.83067349,0.0004,4]
[315010123,1708728648651,-520.65401776,0.0004,4]
[315010124,1708728648680,-5901.92868777,0.0004,4]
[315010125,1708728648696,-252.57141559,0.0004,4]
[315010126,1708728648707,-1289.04421103,0.0004,4]
[315010127,1708728648718,-37923.95520714,0.0004,4]
[315010128,1708728648729,-568.37173635,0.0004,4]
[315010129,1708728648741,-308.80806398,0.0004,4]
[315010130,1708728648752,-606.11814231,0.0004,4]
[315010131,1708728648786,-375.21898823,0.0003158,2]
[315010132,1708728648795,-3078.12408554,0.00038113,10]
[315010133,1708728648806,-37571.06620196,0.0004,4]
[315010134,1708728648819,-1250.0,0.0004,4]
[315010135,1708728648923,-2355.17447244,0.0004,4]
[315010136,1708728648937,-371.24264742,0.0004,4]
[315010137,1708728670018,24653.29101647,0.00023,2]
[315010138,1708728708010,287.41743235,0.0002,2]
[315010139,1708728714144,152.32753792,6.94e-05,2]
[315010140,1708728747041,150.48814111,0.00015,2]
[315010141,1708728756722,173.63888449,0.0002177,2]
[315010142,1708728791660,150.0,9.8e-05,2]
[315010143,1708728791681,55.0,9.8e-05,2]
[315010144,1708728795310,95.0,0.0001305,2]
[315010145,1708728795331,116.52038115,0.0001305,2]
[315010146,1708728827103,33.47961885,0.000142,2]
[315010147,1708728827123,116.52038115,0.000142,2]
[315010148,1708728849031,33.47961885,0.0002,2]
[315010149,1708728849056,150.0,0.0002,2]
[315010150,1708728849076,258.71367984,0.0002,2]
[315010151,1708728849248,48557.39412502,0.0002,2]
[315010153,1708728864198,692.73104195,0.000137,2]
[315010154,1708728902062,500.0,0.00022,2]
[315010155,1708729122053,264.79190781,0.00022,2]
[315010156,1708729191056,250.0,0.00022,2]
[315010157,1708729192525,254.62313764,0.00022274,2]
[315010158,1708729279600,155.0,0.00022274,2]
[315010159,1708729296306,46898.0,0.00022317,2]
[315010160,1708729303585,160.81264372,0.00022274,2]
[315010161,1708729322873,200.0,0.00022163,2]
[315010162,1708729468221,6434.6817,0.00022399,2]
[315010163,1708729622323,241.57957446,0.00022,2]
[315010164,1708729705818,184.98505576,0.000229,6]
[315010165,1708729710781,184.98505574,0.0002413,8]
[315010171,1708729757130,-1049.28241581,0.00022499,2]
[315010172,1708729757357,-501.77033094,0.000225,2]
[315010173,1708729757384,150.0,0.00022,2]
[315010174,1708729760089,150.0,0.00022,2]
[315010179,1708729825363,150.0,0.00022,2]
[315010180,1708729829363,150.0,0.00022,2]
[315010191,1708729832345,-1212.43659335,0.00022498,2]
[315010192,1708729832355,-422.48273699,0.00022499,2]
[315010193,1708729832366,-192.46755915,0.000225,2]
[315010194,1708729832378,-150.0,0.00022548,2]
[315010195,1708729832388,-150.0,0.00022548,2]
[315010196,1708729832398,-2250.0,0.0002276,2]
[315010197,1708729832408,-504.07906863,0.000228,2]
[315010198,1708729832418,-504.07906845,0.00022805,2]
[315010199,1708729832428,-504.07906845,0.00022811,2]
[315010200,1708729832438,-504.07906845,0.00022816,2]
[315010201,1708729832448,-504.07906845,0.00022821,2]
[315010202,1708729832458,-504.07906845,0.00022826,2]
[315010203,1708729832468,-300.26,0.00022826,2]
[315010204,1708729832478,-504.07906845,0.00022832,2]
[315010205,1708729832488,-504.07906845,0.00022837,2]
[315010206,1708729832499,-923.90464301,0.00022899,2]
[315010207,1708729832509,-5201.57,0.00022899,2]
[315010208,1708729832518,-179.77,0.00022899,2]